bitfinex/quotes_ETHUSD_20250404
["timestamp","ask_amount","ask_price","bid_price","bid_amount"]
[1743761197704,3.0,1824.7,1824.5,5.48092]
[1743761197877,0.55,1824.8,1824.4,5.48105]
[1743761198078,3.0,1824.2,1824.1,0.1]
[1743761198404,5.4817,1824.3,1824.1,0.1]
[1743761198405,8.48174,1824.3,1824.1,0.1]
[1743761198702,0.55,1824.2,1824.1,0.1]
[1743761198875,25.89162382,1824.2,1824.1,0.1]
[1743761199075,22.06227982,1824.2,1824.1,0.1]
[1743761199293,9.61,1824.2,1824.1,0.1]
[1743761199596,3.0,1824.2,1824.1,0.1]
[1743761199997,3.0,1824.2,1824.1,5.58215]
[1743761200973,3.55,1824.2,1824.1,0.1]
[1743761201280,3.0,1824.2,1824.1,0.1]
[1743761201593,3.0,1824.2,1824.1,5.58215]
[1743761201789,3.0,1824.2,1824.1,6.688598]
[1743761202383,3.0,1824.2,1824.1,0.1]
[1743761202787,3.0,1824.2,1824.1,5.58215]
[1743761203197,11.774,1824.6,1824.4,5.4811]
[1743761203394,3.0,1824.5,1824.2,5.48181]
[1743761203597,3.0,1824.5,1824.3,5.48136]
[1743761203799,6.06,1824.8,1824.5,5.4807]
[1743761203990,6.06,1824.8,1824.6,5.48045]
[1743761204186,3.0,1824.7,1824.4,11.78741]
[1743761204391,3.0,1824.7,1824.6,5.48065]
[1743761204792,8.47981,1824.9,1824.5,5.48093]
[1743761204993,3.0,1824.9,1824.6,5.4805]
[1743761205188,5.7796,1825.0,1824.4,0.8254]
[1743761205189,3.3,1825.0,1824.4,6.30665]
[1743761205395,0.33,1824.9,1824.6,5.48054]
[1743761205600,3.0,1824.8,1824.5,5.48084]
[1743761205911,3.0,1824.9,1824.5,5.48082]
[1743761206112,3.85,1825.0,1824.6,5.48045]
[1743761206299,3.0,1825.0,1824.7,5.48017]
[1743761206877,3.0,1825.0,1824.4,6.30665]
[1743761207099,3.0,1825.0,1824.7,5.48018]
[1743761207300,3.0,1825.0,1824.8,5.47992]
[1743761207680,3.0,1825.0,1824.8,5.47987]
[1743761207910,3.0,1825.0,1824.7,5.48022]
[1743761208114,3.55,1825.1,1824.9,5.47964]
[1743761208314,3.55,1825.1,1824.7,5.48033]
[1743761208518,3.55,1825.1,1824.8,5.47993]
[1743761208885,6.06,1825.2,1824.8,0.05479607]
[1743761209224,11.53795,1825.6,1824.8,5.715]
[1743761209383,7.24233871,1825.6,1825.0,6.29295]
[1743761209589,3.15564425,1825.5,1825.1,5.53390434]
[1743761209822,3.15564425,1825.5,1825.1,5.47895]
[1743761210119,3.15564425,1825.5,1825.3,5.47838]
[1743761210417,3.15564425,1825.5,1825.2,10.95755]
[1743761210625,3.15564425,1825.5,1825.3,5.47844]
[1743761210786,3.15564425,1825.5,1825.2,5.4787]
[1743761210986,3.15564425,1825.5,1825.3,5.47844]
[1743761211219,3.15564425,1825.5,1825.3,5.47851]
[1743761212222,4.19544255,1825.5,1825.0,0.8135]
[1743761212420,4.19544255,1825.5,1825.0,5.47925]
[1743761212421,3.0,1825.3,1825.0,5.47925]
[1743761212626,0.55,1825.3,1825.1,5.47914]
[1743761212818,0.15279639,1825.2,1825.1,5.47914]
[1743761213118,8.47931,1825.1,1824.7,6.30605]
[1743761213327,8.47931,1825.1,1824.5,0.8257]
[1743761213486,0.152797,1825.0,1824.8,5.48005]
[1743761213888,0.152797,1825.0,1824.8,5.4799]
[1743761214082,0.152797,1825.0,1824.9,6.25045]
[1743761214389,3.0,1825.3,1825.0,5.47945]
[1743761214614,3.0,1825.3,1825.0,5.47932]
[1743761214818,3.55,1825.4,1825.1,5.47898]
[1743761215120,0.55,1825.4,1824.9,6.25021]
[1743761215320,3.55,1825.1,1824.7,5.48024]
[1743761215496,0.55,1825.1,1824.8,5.4798]
[1743761215822,3.0,1825.2,1824.9,5.47974]
[1743761216036,3.0,1825.2,1825.0,5.47918]
[1743761216242,3.0,1825.2,1824.9,5.47972]
[1743761216443,0.55,1825.1,1824.7,5.48017]
[1743761216608,3.0,1825.0,1824.6,11.72635]
[1743761216807,3.0,1825.0,1824.6,6.24578]
[1743761217229,0.55,1824.9,1824.6,0.7653]
[1743761217543,3.0,1825.0,1824.6,0.7653]
[1743761217544,3.0,1825.0,1824.6,6.24569]
[1743761217729,3.55,1824.5,1824.1,5.58199]
[1743761217928,0.55,1824.5,1824.2,5.48179]
[1743761218541,0.55,1824.5,1824.1,5.58199]
[1743761218542,3.0,1824.7,1824.1,0.1]
[1743761218845,3.0,1824.8,1824.5,6.29813]
[1743761219253,3.0,1824.8,1824.5,11.83374328]
[1743761219539,3.0,1824.8,1824.5,0.8173]
[1743761219745,5.48037,1824.7,1824.2,0.8043]
[1743761219953,13.96159,1824.6,1824.2,0.8043]
[1743761220139,8.48107,1824.5,1824.1,0.1]
[1743761220310,0.848107,1824.4,1824.1,0.1]
[1743761220515,9.06,1824.5,1824.1,0.1]
[1743761220726,3.0,1824.3,1824.1,0.1]
[1743761220928,0.55,1824.2,1824.1,0.1]
[1743761221126,15.09185,1824.2,1824.1,0.1]
[1743761221448,17.477716,1824.2,1824.1,0.1]
[1743761221647,15.38,1824.2,1824.1,0.1]
[1743761222011,14.83,1824.2,1824.1,0.1]
[1743761222463,9.06,1824.2,1824.1,0.1]
[1743761222633,14.54185,1824.2,1824.1,0.1]
[1743761222841,9.61,1824.2,1824.1,0.1]
[1743761223135,9.06,1824.2,1824.1,0.1]
[1743761224061,8.48159,1824.3,1824.1,0.1]
[1743761224257,0.1249657,1824.2,1824.1,0.1]
[1743761224443,0.1249657,1824.2,1824.1,6.970684]
[1743761224642,3.0,1824.6,1824.1,6.970684]
[1743761224948,6.03185,1824.2,1824.1,0.1]
[1743761225145,12.618,1824.2,1824.1,0.1]
[1743761225345,15.74541374,1824.2,1824.1,0.1]
[1743761225546,9.18741374,1824.2,1824.1,0.1]
[1743761225730,0.12741374,1824.2,1824.1,0.1]
[1743761225930,0.12741374,1824.2,1824.1,0.658233]
[1743761226286,3.0,1824.3,1824.1,0.1]
[1743761226420,8.59883172,1824.2,1824.1,0.1]
[1743761226620,9.14883172,1824.2,1824.1,0.1]
[1743761226883,3.66698172,1824.2,1824.1,0.1]
[1743761227324,3.11698172,1824.2,1824.1,0.1]
[1743761227830,0.11698172,1824.2,1824.1,0.9081]
[1743761228023,11.54065,1824.6,1824.1,0.9081]
[1743761228220,0.1196234,1824.5,1824.1,0.9081]
[1743761228477,5.48168,1824.3,1824.1,0.1]
[1743761228760,15.20181906,1824.2,1824.1,0.1]
[1743761229738,9.15281906,1824.2,1824.1,0.1]
[1743761229940,3.12096906,1824.2,1824.1,0.1]
[1743761230347,0.12096906,1824.2,1824.1,0.1]
[1743761230554,0.12096906,1824.2,1824.1,6.27053863]
[1743761230827,11.95113596,1825.1,1824.6,5.48052]
[1743761231040,5.4795,1825.0,1824.5,5.48085]
[1743761231366,17.0187,1825.1,1824.5,10.9617]
[1743761231571,17.0187,1825.1,1824.5,5.48078]
[1743761231871,5.48169,1824.3,1824.1,0.1]
[1743761232076,8.48175,1824.3,1824.1,0.1]
[1743761232255,0.55,1824.3,1824.1,0.1]
[1743761232456,8.48152,1824.4,1824.1,0.1]
[1743761232767,6.06,1824.5,1824.3,0.8309]
[1743761233057,0.09998777,1825.0,1824.3,0.8309]
[1743761233263,6.47970862,1825.1,1824.7,5.48009]
[1743761233559,6.47970862,1825.1,1824.7,0.8285]
[1743761233560,5.47987,1824.9,1824.7,0.8285]
[1743761233727,6.02911,1825.2,1824.7,0.8285]
[1743761233935,0.40162128,1825.3,1824.8,5.48005]
[1743761234151,5.88018128,1825.3,1824.8,5.48005]
[1743761234361,5.47843,1825.4,1824.8,10.9601]
[1743761234540,14.56215182,1825.5,1824.9,1.09601]
[1743761234740,6.06,1825.5,1825.0,5.47929]
[1743761235053,3.0,1825.7,1825.1,0.7885]
[1743761235257,3.30940688,1825.8,1824.8,0.8018]
[1743761235258,5.47875,1825.3,1824.8,0.8018]
[1743761235462,0.55,1825.7,1824.9,5.47975]
[1743761235638,5.47776,1825.6,1825.1,5.47901]
[1743761235837,14.56128182,1825.8,1825.3,5.47855]
[1743761236033,3.0,1825.7,1825.2,0.7897]
[1743761236268,5.47765,1825.6,1825.2,0.7897]
[1743761236770,11.53628,1826.1,1825.5,5.4777]
[1743761236966,7.213628,1826.1,1825.6,5.47741]
[1743761237134,51.632,1826.3,1825.6,0.77]
[1743761237335,5.47757,1825.7,1825.3,0.77]
[1743761237532,5.47691,1825.9,1825.3,0.77]
[1743761237769,5.47731,1825.8,1825.3,0.77]
[1743761237965,0.55,1826.0,1825.3,6.873388]
[1743761237966,8.47681,1825.9,1825.3,6.873388]
[1743761238272,5.4776,1825.7,1825.3,0.77]
[1743761238972,5.47735,1825.7,1825.1,0.547901]
[1743761239169,0.55,1825.8,1825.0,5.47937]
[1743761239170,0.55,1825.6,1825.0,0.821]
[1743761239373,5.47879,1825.3,1825.0,0.821]
[1743761239575,0.55,1825.5,1825.0,6.30016]
[1743761239755,0.13030844,1825.2,1825.1,5.47901]
[1743761240077,5.47778,1825.6,1825.3,0.8005]
[1743761240275,3.0,1825.6,1825.4,5.47805]
[1743761240474,3.0,1825.9,1825.3,0.8005]
[1743761240655,6.02709,1825.8,1825.3,0.8005]
[1743761240850,6.02709,1825.8,1825.3,1.428434]
[1743761241043,0.55,1825.6,1825.3,0.8005]
[1743761241238,5.47807,1825.5,1825.1,0.7928]
[1743761241564,5.47865,1825.3,1824.9,0.7928]
[1743761241737,3.0,1825.2,1824.9,0.7928]
[1743761242143,5.47987,1824.9,1824.4,0.7928]
[1743761242377,5.47947,1825.0,1824.4,0.7928]
[1743761242571,5.47978,1824.9,1824.4,0.7928]
[1743761242784,3.0,1824.7,1824.4,0.7928]
[1743761242970,8.48049,1824.7,1824.4,0.7928]
[1743761243142,5.4808,1824.6,1824.2,0.05480985]
[1743761243347,8.48049,1824.7,1824.1,6.36557]
[1743761243547,8.48049,1824.7,1824.2,0.69136685]
[1743761243864,8.48049,1824.7,1824.1,0.8835]
[1743761243865,3.0,1824.7,1824.3,6.26499]
[1743761244067,3.0,1824.7,1824.3,11.74641]
[1743761244252,8.48055,1824.7,1824.3,0.7835]
[1743761244454,5.48098,1824.5,1824.1,0.8869]
[1743761244896,5.48142,1824.4,1824.1,0.1]
[1743761245280,3.0,1824.3,1824.1,0.1]
[1743761245451,8.48185,1824.2,1824.1,0.1]
[1743761245783,9.03185,1824.2,1824.1,0.1]
[1743761245998,3.55,1824.1,1823.4,5.48402]
[1743761246156,5.48261,1824.0,1823.5,0.05483853]
[1743761246347,0.55,1823.9,1823.1,0.8965]
[1743761246684,0.55,1823.9,1823.6,0.7829]
[1743761246884,0.55,1823.9,1823.6,1.46439735]
[1743761247079,0.55,1823.9,1823.6,1.409567]
[1743761247284,0.55,1823.9,1823.6,0.7829]
[1743761247853,6.03277,1823.9,1823.3,5.48442]
[1743761248092,6.03277,1823.9,1823.4,0.807]
[1743761248582,13.96458,1824.1,1823.4,6.29116]
[1743761248784,0.55,1824.0,1823.5,0.05483727]
[1743761248974,6.0325,1824.0,1823.5,0.689437]
[1743761249173,8.48217,1824.1,1823.5,0.63459973]
[1743761249354,8.48217,1824.1,1823.5,0.68943158]
[1743761249355,5.48263,1824.0,1823.5,0.68943158]
[1743761249558,6.03286,1823.9,1823.4,0.807]
[1743761249763,0.55,1824.0,1823.5,11.02227667]
[1743761249968,5.48193,1824.2,1823.6,5.48365]
[1743761250196,3.0,1824.3,1823.7,5.53792283]
[1743761250400,8.48157,1824.3,1823.7,6.34372283]
[1743761250601,3.0,1824.3,1823.8,0.63437228]
[1743761250811,8.48167,1824.3,1823.8,0.63437228]
[1743761251461,13.96352,1824.3,1823.8,0.63437228]
[1743761251668,0.55,1824.2,1823.7,6.28914]
[1743761251881,0.55,1824.2,1823.7,0.8058]
[1743761252090,5.48172,1824.3,1823.7,6.2891]
[1743761252611,0.55,1824.1,1823.7,0.8058]
[1743761253115,0.55,1824.1,1823.7,6.28915]
[1743761253270,0.55,1824.1,1823.7,2.03789256]
[1743761253472,0.55,1824.1,1823.7,1.983067]
[1743761254097,6.03218,1824.1,1823.7,0.8058]
[1743761254303,0.55,1823.9,1823.2,0.7645]
[1743761254486,0.11708596,1823.8,1823.3,11.59144]
[1743761254805,0.11708596,1823.8,1823.6,5.4835]
[1743761255005,0.11708596,1823.8,1823.5,5.48394]
[1743761255181,3.0,1824.0,1823.6,6.31003]
[1743761255368,0.11592328,1823.7,1823.6,0.8264]
[1743761255575,3.0,1824.0,1823.6,0.8264]
[1743761255768,3.0,1824.0,1823.6,0.88122956]
[1743761255769,0.1165275,1823.7,1823.6,0.88122956]
[1743761255973,0.55,1824.0,1823.6,6.36487956]
[1743761256186,0.11674746,1823.7,1823.6,7.49490396]
[1743761256385,3.0,1824.1,1823.6,7.49477396]
[1743761256612,0.11662659,1823.7,1823.6,7.49477396]
[1743761256775,6.06,1824.4,1824.0,5.48233]
[1743761257113,0.12286846,1824.3,1823.9,0.8296]
[1743761257303,5.48293,1823.9,1823.4,0.8296]
[1743761257503,5.48293,1823.9,1823.1,0.8532]
[1743761257504,0.55,1823.6,1823.1,0.8532]
[1743761257708,0.11013735,1823.5,1823.1,0.8532]
[1743761257871,3.0,1823.3,1823.1,0.1]
[1743761258066,0.10725524,1823.2,1823.1,0.1]
[1743761258304,6.03428,1823.4,1823.1,0.1]
[1743761258305,3.0,1823.4,1823.1,0.1]
[1743761258609,3.0,1823.4,1823.1,5.58497]
[1743761258610,0.10872218,1823.3,1823.1,5.58497]
[1743761258906,0.10872218,1823.3,1823.1,0.1]
[1743761259072,6.06,1823.5,1823.1,0.1]
[1743761259276,0.11100808,1823.4,1823.1,0.1]
[1743761259780,0.11100808,1823.4,1823.2,5.48485]
[1743761259977,0.11100808,1823.4,1823.1,6.89149]
[1743761260279,0.66100808,1823.4,1823.1,0.1]
[1743761260612,0.11100808,1823.4,1823.2,5.48466]
[1743761260778,0.11100808,1823.4,1823.1,5.5851]
[1743761261000,0.11100808,1823.4,1823.1,0.1]
[1743761261294,8.48486,1823.2,1823.1,0.1]
[1743761261495,10.59434656,1823.2,1823.1,0.1]
[1743761261682,5.10948656,1823.2,1823.1,0.1]
[1743761263010,0.65753056,1823.2,1823.1,0.1]
[1743761263218,0.10753056,1823.2,1823.1,5.58516]
[1743761263585,0.10753056,1823.2,1823.1,0.1]
[1743761263799,0.10753056,1823.2,1823.1,5.58516]
[1743761264379,3.0,1823.4,1823.1,0.1]
[1743761264583,6.06,1823.9,1823.8,6.30345]
[1743761264779,6.44302501,1824.2,1823.5,5.48381]
[1743761264980,5.48223,1824.1,1823.4,6.172]
[1743761265202,6.030963,1824.0,1823.3,6.30479]
[1743761265520,0.5448,1824.7,1824.1,6.30239]
[1743761265719,0.5448,1824.7,1824.1,6.30235]
[1743761265924,0.55,1824.4,1823.8,0.7801]
[1743761266083,0.5448,1824.3,1823.8,6.26303]
[1743761266284,6.02637,1824.3,1823.7,5.48323]
[1743761266484,0.55,1824.1,1823.7,10.96647]
[1743761266723,0.55,1824.1,1823.6,5.48364]
[1743761266879,0.55,1824.1,1823.7,5.48332]
[1743761267312,0.55,1824.1,1823.7,5.48325]
[1743761267814,0.55,1824.1,1823.8,5.48303]
[1743761267994,0.55,1824.1,1823.8,5.53785402]
[1743761268558,0.5448,1824.3,1823.9,5.48263]
[1743761268883,3.5448,1824.3,1823.8,6.5850404]
[1743761269083,12.31141,1824.3,1823.8,5.48294]
[1743761269321,0.55,1824.2,1823.8,5.53775942]
[1743761269625,0.67759104,1824.2,1823.8,5.48294]
[1743761269830,0.67759104,1824.2,1823.7,5.48315]
[1743761270027,0.67759104,1824.2,1823.5,7.0021]
[1743761270187,3.67759104,1824.2,1823.7,5.48334]
[1743761270393,3.55,1824.0,1823.5,0.7801]
[1743761270730,3.55,1823.8,1823.3,6.29371]
[1743761270929,3.12423978,1823.7,1823.2,10.96949]
[1743761271227,0.12423978,1823.7,1823.5,5.48387]
[1743761271429,0.12423978,1823.7,1823.6,6.0868667]
[1743761271826,0.55,1824.0,1823.6,6.0868667]
[1743761272130,3.5448,1824.1,1823.7,5.48325]
[1743761272359,3.5448,1824.1,1823.6,6.793627]
[1743761272665,0.55,1824.0,1823.6,1.310087]
[1743761273016,0.55,1824.0,1823.5,10.96754]
[1743761273244,3.5448,1824.1,1823.6,0.05483107]
[1743761273445,3.0,1824.1,1823.7,5.4831]
[1743761273742,0.55,1824.1,1823.8,5.53783385]
[1743761273950,6.06,1824.2,1823.8,6.09161724]
[1743761274247,3.0,1824.1,1823.8,0.55378339]
[1743761274463,0.55,1824.0,1823.5,5.48378]
[1743761274624,3.0,1823.9,1823.4,12.48439]
[1743761274954,3.5448,1823.9,1823.4,6.28945]
[1743761275442,9.0276,1823.9,1823.4,6.28945]
[1743761276148,3.5448,1823.9,1823.4,8.086008]
[1743761276345,3.5448,1823.9,1823.4,13.570128]
[1743761276547,0.5448,1823.9,1823.5,5.48383]
[1743761276846,0.5448,1823.9,1823.5,5.53862078]
[1743761277017,3.0,1823.8,1823.4,7.973598]
[1743761277423,0.55,1823.8,1823.4,13.457798]
[1743761277619,0.55,1823.8,1823.4,18.941898]
[1743761277945,3.5448,1823.9,1823.5,0.74045065]
[1743761277946,0.5448,1823.9,1823.5,0.74045065]
[1743761278146,0.5448,1823.9,1823.5,6.22437951]
[1743761278450,3.55,1823.6,1823.2,6.95]
[1743761278826,3.55,1823.6,1823.3,0.05483952]
[1743761279226,3.55,1823.4,1823.1,0.1]
[1743761280157,5.48368,1823.6,1823.2,5.53964509]
[1743761280158,0.55,1823.6,1823.2,5.53964509]
[1743761280323,3.5448,1823.7,1823.3,0.55396451]
[1743761280523,3.5448,1823.7,1823.3,6.03851451]
[1743761280915,9.02825,1823.7,1823.3,0.55396451]
[1743761281119,0.5448,1823.7,1823.1,0.1]
[1743761281315,6.61,1823.8,1823.4,5.484]
[1743761281550,3.55,1823.8,1823.4,5.53883495]
[1743761281852,3.43586089,1824.2,1823.4,5.53883495]
[1743761281853,0.5448,1824.3,1823.8,5.48296]
[1743761282053,0.5448,1824.5,1824.2,5.48175]
[1743761282259,6.06,1824.7,1824.2,5.48175]
[1743761282260,6.6048,1824.7,1824.2,5.48175]
[1743761282557,6.6048,1824.7,1824.0,0.7611]
[1743761282558,0.12295263,1824.6,1824.3,5.53632856]
[1743761282871,6.02461,1824.9,1824.4,5.48123]
[1743761283023,6.02461,1824.9,1824.3,5.48152]
[1743761283219,5.48017,1824.8,1824.2,5.48168]
[1743761283425,5.48016,1824.8,1824.3,0.05480378]
[1743761283664,0.548016,1824.7,1824.2,5.48172]
[1743761283822,5.48079,1824.6,1824.0,6.24354]
[1743761284026,5.48079,1824.6,1824.1,6.18]
[1743761284422,3.0,1824.6,1824.1,11.66213]
[1743761284627,3.0,1824.6,1824.2,0.05481041]
[1743761284828,9.9315756,1824.6,1824.1,11.66213]
[1743761285042,9.9315756,1824.6,1824.0,6.24338]
[1743761285224,4.0948,1824.4,1824.0,6.9321]
[1743761285426,4.0948,1824.4,1824.0,12.4145]
[1743761285625,4.0948,1824.4,1824.0,6.9321]
[1743761285845,5.89116,1824.3,1823.8,0.825]
[1743761286049,6.03191,1824.2,1823.7,6.174]
[1743761286249,6.03191,1824.2,1823.6,17.94602]
[1743761286446,0.55,1824.2,1823.7,0.05482393]
[1743761286758,0.40948,1824.3,1823.7,0.05482393]
[1743761286759,0.55,1824.3,1823.8,5.48295]
[1743761287060,6.03157,1824.3,1823.9,0.05482118]
[1743761287257,6.03157,1824.3,1823.9,0.05482122]
[1743761287558,11.51357,1824.3,1823.7,6.18667239]
[1743761287857,5.48185,1824.2,1823.7,6.18667239]
[1743761288059,6.03175,1824.3,1823.8,0.05482423]
[1743761288255,12.71928,1824.3,1823.8,0.05482423]
[1743761288442,5.48185,1824.2,1823.7,6.18656239]
[1743761288827,5.48185,1824.2,1823.8,0.05482423]
[1743761289163,7.23753,1824.3,1823.8,0.05482423]
[1743761289453,7.23753,1824.3,1823.8,5.53785423]
[1743761290055,12.71926,1824.3,1823.8,0.05482423]
[1743761290248,12.71926,1824.3,1823.7,6.18656239]
[1743761290758,5.48217,1824.1,1823.6,17.91]
[1743761291081,0.5448,1824.1,1823.4,0.8165]
[1743761291255,6.03321,1823.8,1823.2,6.30113]
[1743761291458,0.55,1823.6,1823.3,0.05483956]
[1743761291638,0.55,1823.6,1823.2,6.35596956]
[1743761292035,0.5448,1823.9,1823.4,5.48422]
[1743761292225,3.0,1823.9,1823.6,5.48365]
[1743761292424,3.0,1823.9,1823.5,0.05483144]
[1743761292425,3.0,1823.9,1823.5,5.4838]
[1743761292654,3.0,1823.9,1823.5,5.48395]
[1743761292858,3.0,1823.9,1823.5,5.53878144]
[1743761293058,3.0,1823.9,1823.5,0.05483144]
[1743761293263,3.0,1823.9,1823.4,17.10231]
[1743761293446,3.0,1823.9,1823.4,18.812541]
[1743761293650,3.0,1823.9,1823.5,5.53876115]
[1743761294241,3.0,1823.9,1823.5,0.05483115]
[1743761294441,3.0,1823.9,1823.4,18.812461]
[1743761294662,1.0948,1823.8,1823.2,6.30133]
[1743761294896,5.48362,1823.7,1823.2,5.48479]
[1743761295035,5.48362,1823.7,1823.2,10.96951]
[1743761295230,0.5448,1823.8,1823.1,6.22]
[1743761295464,3.0,1823.9,1823.5,5.4839]
[1743761295766,6.6048,1824.0,1823.7,5.48333]
[1743761296080,0.5448,1824.3,1823.9,5.48252]
[1743761296438,8.48095,1824.5,1824.0,5.53714529]
[1743761296639,13.96209,1824.5,1824.0,5.48233]
[1743761296965,7.4764356,1824.6,1824.1,5.48205]
[1743761297356,11.54035,1824.7,1824.2,0.7828]
[1743761297555,3.0,1824.6,1824.2,6.26444]
[1743761297758,3.0,1824.6,1824.2,0.7828]
[1743761297950,11.54035,1824.7,1824.2,5.48176]
[1743761298270,3.0,1824.6,1824.2,5.48176]
[1743761298856,0.55,1824.6,1824.2,5.48176]
[1743761299173,3.55,1824.6,1824.1,12.060449]
[1743761299470,3.55,1824.6,1824.2,11.72176711]
[1743761299667,3.55,1824.6,1824.2,11.72159711]
[1743761299841,3.0,1824.6,1824.3,10.96299]
[1743761300038,0.5448,1824.8,1824.4,5.53603686]
[1743761300257,6.6048,1825.0,1824.5,5.48078]
[1743761300449,6.6048,1825.0,1824.6,5.53533951]
[1743761300649,3.0,1824.9,1824.6,5.53533951]
[1743761301051,5.48084,1824.6,1824.0,6.27519]
[1743761301341,5.48084,1824.6,1823.5,5.48381]
[1743761301342,5.48239,1824.1,1823.5,11.76055]
[1743761301551,0.55,1824.3,1823.8,5.48292]
[1743761302067,6.03168,1824.3,1823.8,5.48292]
[1743761302268,11.51346,1824.3,1823.7,5.48331]
[1743761302472,6.03168,1824.3,1823.7,10.96643]
[1743761302664,11.51345,1824.3,1823.7,5.48318]
[1743761302861,0.55,1824.3,1823.6,5.48365]
[1743761303049,8.48173,1824.3,1823.8,5.48297]
[1743761303248,0.55,1824.2,1823.7,0.7709]
[1743761303565,0.55,1824.2,1823.7,6.25416]
[1743761303758,0.55,1824.2,1823.8,5.48295]
[1743761303951,9.02635,1824.4,1823.9,5.48263]
[1743761304143,9.02635,1824.4,1823.9,5.4826]
[1743761304553,9.02632,1824.4,1823.9,5.48268]
[1743761304773,3.5448,1824.4,1823.9,5.48261]
[1743761305070,3.5448,1824.4,1824.0,5.53726644]
[1743761305277,3.0,1824.4,1824.0,5.53726644]
[1743761305446,3.0,1824.4,1824.0,0.60854308]
[1743761305646,5.48096,1824.5,1824.1,0.8285]
[1743761305859,0.5448,1824.6,1824.1,6.31062]
[1743761306061,3.0,1824.4,1824.1,0.8285]
[1743761306289,0.5448,1824.8,1824.2,6.18781265]
[1743761306587,0.5448,1825.0,1824.5,6.26488]
[1743761306790,6.06,1825.1,1824.6,5.4805]
[1743761306969,5.47918,1825.1,1824.6,5.4805]
[1743761307295,5.47918,1825.1,1824.5,6.26504]
[1743761307439,5.47917,1825.1,1824.5,1.410604]
[1743761307645,5.47917,1825.1,1824.6,5.48052]
[1743761307945,0.55,1825.0,1824.5,6.26503]
[1743761308156,5.47977,1824.9,1824.3,9.10029126]
[1743761308380,0.55,1824.7,1824.2,5.48166]
[1743761308601,5.48076,1824.6,1824.1,0.8161]
[1743761308788,6.0304,1824.7,1824.1,6.29802]
[1743761309083,6.0304,1824.7,1824.2,5.48173]
[1743761309802,5.48067,1824.6,1824.1,11.78005]
[1743761309943,5.48067,1824.6,1824.1,12.958055]
[1743761310144,5.481,1824.5,1824.1,1.994105]
[1743761310674,5.48189,1824.2,1823.8,0.625385]
[1743761310971,6.6738,1824.4,1823.6,5.48365]
[1743761311176,0.55,1824.3,1823.6,5.48365]
[1743761311361,0.55,1824.3,1823.8,5.48284]
[1743761311569,0.55,1824.3,1823.8,6.031124]
[1743761311743,0.55,1824.3,1823.9,11.0201798]
[1743761311943,0.5448,1824.4,1824.1,5.48211]
[1743761312178,3.55,1824.5,1824.0,10.96452]
[1743761312367,3.55,1824.5,1824.0,5.48217]
[1743761312545,9.03095,1824.5,1824.0,6.105687]
[1743761312755,0.5448,1823.9,1823.3,6.23742]
[1743761312980,6.02758,1823.9,1823.4,5.48421]
[1743761313585,5.4831,1823.8,1823.3,0.753]
[1743761313986,5.4831,1823.8,1823.3,6.23744]
[1743761314159,5.4831,1823.8,1823.3,0.753]
[1743761314486,5.4831,1823.8,1823.3,6.23753]
[1743761314683,4.0948,1823.9,1823.1,0.8509]
[1743761314889,5.48353,1823.7,1823.1,6.33602]
[1743761315075,5.4834,1823.7,1823.1,6.33602]
[1743761315275,6.03379,1823.6,1823.2,0.05483797]
[1743761315568,6.03379,1823.6,1823.1,6.33602]
[1743761315569,5.48442,1823.4,1823.1,0.1]
[1743761315768,5.48457,1823.3,1823.1,0.1]
[1743761316984,0.5448,1823.5,1823.1,0.1]
[1743761317173,6.02891,1823.5,1823.1,0.658535]
[1743761317379,5.48437,1823.4,1823.1,0.1]
[1743761318089,5.48486,1823.2,1823.1,0.1]
[1743761318268,6.03486,1823.2,1823.1,0.1]
[1743761318997,9.57966,1823.2,1823.1,0.1]
[1743761319798,12.60386182,1823.2,1823.1,0.1]
[1743761320104,5.48745,1822.4,1822.1,0.1]
[1743761320299,6.03772,1822.3,1822.1,0.1]
[1743761320605,5.48787,1822.2,1822.1,0.1]
[1743761320900,3.5448,1822.4,1822.1,0.1]
[1743761321086,6.6048,1822.7,1822.2,5.54259635]
[1743761321411,3.0,1822.6,1822.1,5.58799]
[1743761321579,0.5448,1822.7,1822.2,5.48762]
[1743761322112,0.5448,1822.7,1822.1,0.1]
[1743761322113,5.4877,1822.3,1822.1,0.1]
[1743761322279,0.55,1822.2,1822.1,0.1]
[1743761322470,9.58267,1822.2,1822.1,0.1]
[1743761322668,5.49011,1821.5,1821.0,0.8326]
[1743761322862,0.55,1821.4,1821.0,0.8326]
[1743761323065,6.04088,1821.2,1820.4,5.49311]
[1743761323279,12.06508182,1821.2,1820.3,5.49356]
[1743761323479,0.5448,1821.6,1821.1,5.59096]
[1743761323678,0.55,1821.5,1821.1,0.1]
[1743761323889,6.03568,1821.2,1821.1,0.1]
[1743761324124,17.038095,1821.2,1821.1,0.1]
[1743761324328,10.1548,1821.2,1821.1,0.1]
[1743761324472,15.64568,1821.2,1821.1,0.1]
[1743761324673,10.1548,1821.2,1821.1,0.1]
[1743761324869,0.5448,1821.6,1821.2,5.49064]
[1743761325106,0.5448,1821.9,1821.2,0.559064]